Cogmind - Beta 15 @@@ ROGUE MODE // 2025.07.14 @ 17:46:25 Player: Skysub Result: Destroyed by T7-DNX(R) with Subdweller Shrapnel Launcher Performance ------------- Evolutions (0) 0 Regions Visited (2) 400 Robots Destroyed (28) 140 Value Destroyed (611) 611 Prototype IDs (0) 0 Alien Tech Used (0) 0 Bonus (0) 0 TOTAL SCORE: 1151 Bonus ------- None Cogmind --------- Core Integrity 0/250 Matter 0/300 Energy 100/100 System Corruption 5% Temperature Cool (0) Movement Treading (240) Ox1 Location -10/Subcaves Parts ------- > --- POWER (1) -------- (None) > --- PROPULSION (2) --- Light Treads > --- UTILITY (2) ------ Large Storage Unit Improved Terrain Scanner > --- WEAPON (2) ------- Small Laser Grenade Launcher > --- INVENTORY (15) --- Subdweller Power Source Light Treads Light Treads Spiked Treads Wheel Subdweller Monowheel Subdweller Monowheel Subdweller Monowheel Subdweller Monowheel Scrap Shield Medium Laser Subdweller Laser Grenade Launcher Mining Laser Peak State ------------ > --- POWER ------------ Ion Engine > --- PROPULSION ------- Light Treads Light Treads > --- UTILITY ---------- Small Storage Unit Improved Terrain Scanner > --- WEAPON ----------- Medium Laser Assault Rifle > --- INVENTORY -------- Light Ion Engine Wheel Mining Laser [Rating: 9] Favorites ----------- Power Ion Engine Engine Ion Engine Propulsion Light Treads Treads Light Treads Utility Large Storage Unit Device Improved Terrain Scanner Storage Large Storage Unit Protection Light Armor Plating Weapon Assault Rifle Energy Gun Small Laser Ballistic Gun Assault Rifle Launcher Grenade Launcher Special Weapon Mining Laser Build | -11 -10 -10 ------- Run | Yrd Mat Sub Slots Evolved . | . . . Power . | . . . Propulsion . | . . . Utility . | . . . Weapon . | . . . Parts Attached 14 | 7 3 4 Power 1 | 1 . . Engine 1 | 1 . . Core . | . . . Reactor . | . . . Propulsion 2 | 2 . . Treads 2 | 2 . . Leg . | . . . Wheel . | . . . Hover . | . . . Flight . | . . . Utility 5 | 2 2 1 Device 2 | 1 . 1 Storage 2 | 1 1 . Processor . | . . . Hackware . | . . . Protection 1 | . 1 . Artifact . | . . . Weapon 6 | 2 1 3 Energy Gun 2 | 1 . 1 Energy Cannon . | . . . Ballistic Gun 2 | 1 1 . Ballistic Cannon . | . . . Launcher 1 | . . 1 Special Weapon 1 | . . 1 Impact Weapon . | . . . Slashing Weapon . | . . . Piercing Weapon . | . . . Special Melee Weapon . | . . . Unidentified Prototypes . | . . . Parts Lost 6 | . 1 5 Power 1 | . . 1 Propulsion 1 | . . 1 Utility 2 | . . 2 Weapon 2 | . 1 1 Highest Loss Streak 2 | . 1 2 To Critical Strikes . | . . . Average Backups 8 | 1 7 11 Power . | . . . Propulsion 3 | . 2 5 Utility 1 | . . 1 Weapon 3 | . 3 3 Tool/Special . | . . . Unused Backups 12 | . 1 11 Power 2 | . 1 1 Propulsion 7 | . . 7 Utility 1 | . . 1 Weapon 2 | . . 2 Tool/Special . | . . . Average Slot Usage (%) 89 | . 100 80 Engine 8 | . 14 3 Treads 24 | . 28 21 Device 6 | . 3 9 Storage 14 | . 14 14 Protection 6 | . 10 2 Energy Gun 10 | . 7 13 Ballistic Gun 11 | . 20 3 Launcher 5 | . . 10 Peak Build Rating 9 | 9 9 9 Average Rating 7 | 5 8 8 On Entrance 5 | . 9 8 Naked Turns . | . . . Heaviest Build 31 | 15 31 31 Greatest Support 40 | 40 40 40 Greatest Overweight (x) 1 | . . 1 Average Overweight (x) . | . . . Largest Inventory Capacity 15 | 8 15 15 Average Capacity 12 | 7 11 15 Most Carried 15 | 3 9 15 Average Carried 9 | 1 7 12 Final Capacity 15 | 8 15 15 Final Carried 15 | 3 9 15 Class Distribution -------------------- 100% | Mutant Dominant Class ---------------- Mutant | -10/Materials Mutant | -10/Subcaves Resources | -11 -10 -10 ----------- Run | Yrd Mat Sub Matter Collected 473 | 167 235 71 Remotely . | . . . Salvage Created 847 | 131 570 146 Parts 58 | 8 40 10 Haulers Intercepted . | . . . Recyclers Shooed 1 | 1 . . Parts Field Recycled . | . . . Retrieved Matter . | . . . Parts Self-Destructed 12 | . . 12 Prevented . | . . . Kills | -11 -10 -10 ------- Run | Yrd Mat Sub Combat Hostiles Destroyed 14 | . 8 6 Guns 9 | . 8 1 AOE 5 | . . 5 Classes Destroyed 7 | 3 3 1 Worker 3 | 2 1 . Builder 5 | . 5 . Tunneler 2 | 2 . . Recycler 2 | 1 1 . Watcher 2 | . 2 . Grunt 8 | . 8 . Subdweller 6 | . . 6 Best Kill Streak 4 | 4 3 2 Combat Bots Only 2 | . 2 2 Max Kills in Single Turn 1 | 1 1 1 Gunslinging . | . . . Exploded 1 | . . 1 Melee . | . . . Uniques/NPCs Destroyed . | . . . Combat | -11 -10 -10 -------- Run | Yrd Mat Sub Hostile Shots Fired 83 | . 63 20 Missed 20 | . 17 3 Hits 63 | . 46 17 Projectile 63 | . 46 17 AOE 1 | . . 1 Critical Strikes 2 | . 1 1 Damage Taken 1193 | . 557 636 Core 263 | . 102 161 Absorbed by Shields . | . . . Core Remaining (%) 100 | 100 . . Volleys Fired 114 | 23 68 23 Largest 2 | 2 2 2 Hottest 100 | 70 70 100 Shots Fired 199 | 46 120 33 Gun 179 | 46 120 13 Cannon . | . . . Launcher 12 | . . 12 Special 8 | . . 8 Kinetic 123 | 23 96 4 Thermal 64 | 23 24 17 Explosive 12 | . . 12 Electromagnetic . | . . . Robot Hit Streak 17 | 8 15 17 Robot Miss Streak 4 | 4 4 1 Penetration Max . | . . . Secondary Targets 1 | . 1 . Max Gunslinging Chain 1 | . 1 . Shots Hit Robots 110 | 27 65 18 Core Hits 49 | 5 30 14 Critical Kills . | . . . Critical Parts Destroyed 1 | . 1 . Critical Strikes 2 | 1 1 . Burn 1 | 1 . . Destroy 1 | . 1 . Melee Attacks . | . . . Impact . | . . . Slashing . | . . . Piercing . | . . . Sneak Attacks . | . . . Combat Hostiles . | . . . Follow-up Attacks . | . . . Damage Inflicted 1781 | 314 776 691 Guns 1200 | 309 769 122 Cannons . | . . . Explosions 569 | . . 569 Melee . | . . . Ramming 12 | 5 7 . Kinetic 725 | 121 570 34 Thermal 475 | 188 199 88 Explosive 569 | . . 569 Electromagnetic . | . . . Impact . | . . . Slashing . | . . . Piercing . | . . . Highest Corruption 5 | . . 5 Average Corruption 5 | . . 5 Corruption Purged . | . . . Corruption Blocked . | . . . Effects 18 | . . 18 Message Errors 6 | . . 6 Matter Fused 3 | . . 3 Heat Flow Errors 3 | . . 3 Energy Discharges 1 | . . 1 Parts Rejected 1 | . . 1 Data Loss (minor) 2 | . . 2 Data Loss (major) 1 | . . 1 Misfires 1 | . . 1 Overload Shots . | . . . Overflow Damage . | . . . Projectiles . | . . . Explosions . | . . . Melee . | . . . Knockbacks . | . . . Impact . | . . . Kinetic . | . . . Secondary . | . . . Self-Inflicted Damage . | . . . Shots . | . . . Rammed 2 | 1 1 . Targets Rammed 2 | 1 1 . Kicked . | . . . Crushed . | . . . Highest Temperature 245 | 135 234 245 Average Temperature 63 | 49 64 117 Received Heat Transfer 420 | . 321 99 Siege Activations . | . . . Martial Activations . | . . . Shielding Activations . | . . . Robots Disrupted . | . . . Combat Hostiles . | . . . Robots Corrupted . | . . . Combat Hostiles . | . . . Parts Fried . | . . . Impact Corruptions . | . . . Robots Melted . | . . . Combat Hostiles . | . . . Parts Melted 2 | . 1 1 Heat Transferred 1421 | 629 592 200 Parts Sabotaged . | . . . Parts Stolen . | . . . Parts Stripped . | . . . Power Chain Reactions . | . . . Alert | -11 -10 -10 ------- Run | Yrd Mat Sub Maximum Alert Level . | . . . Low Security (%) 100 | 100 100 . Level 1 . | . . . Level 2 . | . . . Level 3 . | . . . Level 4 . | . . . Level 5 . | . . . High Security . | . . . Max Security . | . . . Peak Influence 79 | 10 79 . Initial . | . . . Average 18 | 1 22 . Influence Increases 313 | 25 288 . Destroy 0b10 Robot/C 160 | . 160 . Destroy 0b10 Robot/NC 70 | 25 45 . Destroy Leader 44 | . 44 . Successful Hack 9 | . 9 . Select Force Hacks 30 | . 30 . Influence Decreases 313 | 25 256 32 Entered New Map 16 | . . 16 Time Decay 290 | 25 249 16 Lost Part 7 | . 7 . Squads Dispatched 3 | . 3 . Investigation 2 | . 2 . Extermination . | . . . Reinforcement 1 | . 1 . Assault . | . . . Garrison . | . . . Intercept . | . . . Searches Triggered . | . . . Construction Impeded . | . . . Haulers Reinforced . | . . . Active Scanning Responses . | . . . Cargo Convoy Interrupts . | . . . Stealth | -11 -10 -10 --------- Run | Yrd Mat Sub Distress Signals 1 | . 1 . Communications Jammed . | . . . Distress Signals . | . . . Times Spotted 25 | . 18 7 Peak Tracking Total 7 | . 7 2 Tactical Retreats . | . . . Traps | -11 -10 -10 ------- Run | Yrd Mat Sub Traps Triggered 1 | . 1 . Indirectly . | . . . Trap Hack Attempts . | . . . Triggered . | . . . Disarmed . | . . . Reprogrammed . | . . . Reused . | . . . Traps Extracted . | . . . Installed . | . . . Triggered . | . . . Machines | -11 -10 -10 ---------- Run | Yrd Mat Sub Machines Disabled . | . . . Max in Single Turn . | . . . Machines Repaired . | . . . Machines Dismantled . | . . . Machines Sabotaged . | . . . Overloaded Fab Kills . | . . . Hacking | -11 -10 -10 --------- Run | Yrd Mat Sub Machines Accessed 4 | . 4 . Terminals 3 | . 3 . Fabricators . | . . . Repair Stations . | . . . Recycling Units 1 | . 1 . Scanalyzers . | . . . Garrison Access . | . . . Total Hacks 11 | . 11 . Successful 5 | . 5 . Failed 6 | . 6 . Catastrophic . | . . . Database Lockouts . | . . . Manual 10 | . 10 . Terminals 9 | . 9 . Fabricators . | . . . Repair Stations . | . . . Recycling Units 2 | . 2 . Scanalyzers . | . . . Garrison Access . | . . . Terminal Hacks . | . . . Fabricator Hacks . | . . . Repair Station Hacks . | . . . Recycling Unit Hacks 1 | . 1 . Report Inventory 1 | . 1 . Scanalyzer . | . . . Garrison Access Hacks . | . . . Unauthorized Hacks 4 | . 4 . Terminals 3 | . 3 . Botnet 1 | . 1 . Skim 2 | . 2 . Fabricators . | . . . Repair Stations . | . . . Recycling Units 1 | . 1 . Tunnel 1 | . 1 . Scanalyzers . | . . . Garrison Access . | . . . Data Cores Recovered . | . . . Used . | . . . Hacking Detections 3 | . 3 . Full Trace Events . | . . . Feedback Events . | . . . Feedback Blocked . | . . . Robot Schematics Acquired . | . . . Robots Built . | . . . Authchips . | . . . Time . | . . . Total Robot Build Rating . | . . . Part Schematics Acquired . | . . . Parts Built . | . . . Authchips . | . . . Time . | . . . Total Part Build Rating . | . . . Parts Repaired . | . . . Time . | . . . Parts Recycled . | . . . Recycled Matter . | . . . Retrieved Matter . | . . . Retrieved Components . | . . . Parts Scanalyzed . | . . . Part Schematics Acquired . | . . . Parts Damaged . | . . . Bothacking | -11 -10 -10 ------------ Run | Yrd Mat Sub Used RIF Installer . | . . . Robots Hacked . | . . . Non-combat . | . . . Combat . | . . . Robot Hacks Applied . | . . . Relay Couplers Released . | . . . Fabnet Peak Effective % . | . . . Robots Rewired . | . . . Allies Hacked . | . . . Hacks Repelled . | . . . Allies | -11 -10 -10 -------- Run | Yrd Mat Sub Total Allies . | . . . Largest Group . | . . . Highest-Rated Group . | . . . Highest-Rated Ally . | . . . Total Orders . | . . . Ally Attacks . | . . . Total Damage . | . . . Kills . | . . . Allies Corrupted . | . . . Allies Melted . | . . . Intel | -11 -10 -10 ------- Run | Yrd Mat Sub Active Infowar (turns) 920 | 13 240 667 Terrain 822 | 13 240 569 Structural 98 | . . 98 Robot Analysis Total . | . . . Derelict Logs Recovered 1 | . . 1 Drone Launches . | . . . Drone Recoveries . | . . . Exploration | -11 -10 -10 ------------- Run | Yrd Mat Sub Turns Passed 2018 | 208 881 929 Spaces Moved 880 | 81 362 437 Core 4 | 4 . . Treads 876 | 77 362 437 Legs . | . . . Wheels . | . . . Hover . | . . . Flight . | . . . Fastest Speed 50 | 50 160 160 Average Speed 175 | 154 160 192 Slowest Speed 240 | 160 160 240 Overloaded Moves . | . . . Propulsion Burnouts . | . . . Robots Hopped . | . . . Potential Cave-ins 1 | . . 1 Cave-ins Triggered 1 | . . 1 Exploration Rate (%) 26 | 6 44 30 Regions Visited 2 Branch Regions 1 Pre-discovered Areas 2 | . 1 1 Known Exits Taken . | . . . Unknown Exits Taken 2 | 1 1 . Scrap Searched 1 | . . 1 Spaces Dug 7 | . . 7 Terrain Destroyed 52 | . . 52 Melee . | . . . Projectile 7 | . . 7 AOE 45 | . . 45 Terrain Rammed . | . . . Walls Destroyed . | . . . Machines Disabled . | . . . Actions | -11 -10 -10 --------- Run | Yrd Mat Sub Total 1140 | 114 550 476 Wait 107 | . 106 1 Move 878 | 80 361 437 Hop . | . . . Pick Up 19 | 3 8 8 Fast Attach 8 | 7 . 1 Attach 4 | . 1 3 Detach . | . . . Swap 6 | . 3 3 Drop 2 | . 2 . Fire 114 | 23 68 23 Melee . | . . . Ram . | . . . Kick . | . . . Crush 2 | 1 1 . Escape Stasis . | . . . Rewire . | . . . Trap . | . . . Miscellaneous . | . . . Route ------- -11/Scrapyard -10/Materials (discovered 2 exits: [*Mat] / [*Sub]) -10/Subcaves History --------- Turn | Location | Event 25 | -11/Scrapyard | Discovered new exit (range 15) 209 | -11/Scrapyard | Entered Materials 312 | -10/Materials | Build established: Mutant 759 | -10/Materials | Discovered new exit (range 5) 841 | -10/Materials | Discovered new exit (range 9) 1090 | -10/Materials | Entered Subcaves 1091 | -10/Subcaves | Approached by a straggling Scientist 1240 | -10/Subcaves | Crushed by falling debris 1240 | -10/Subcaves | Core integrity fell below 50% 1332 | -10/Subcaves | Core integrity fell below 20% 2019 | -10/Subcaves | Destroyed by T7-DNX(R) with Subdweller Shrapnel Launcher Last Messages --------------- 01629_ The unstable cave ceiling collapses. 01667_ A&XVAOH9QRQ8EZRIHCQSTA#OAE PH7:TB8W 01694_ System corrupted: FCS attempts to trigger Grenade Launcher. 01694_ System corrupted: Grenade Launcher misfires. 01709_ System corrupted: Matter fused (-7). 01743_ System corrupted: Component data lost. 01750_ DL-0P7(u) tweaks Twisted Machinery. 01803_ Acquired Sub. Laser. 01806_ System corrupted: Substantial component data lost. 01825_ Acquired Spk. Treads. 01826_ DL-0P7(u) tweaks Twisted Machinery. 01832_ System corrupted: Heat flow error (+235). 01889_ Acquired derelict log, extracted data. World map updated: -9/Materials. 01891_ System corrupted: Matter fused (-1). 01919_ System corrupted: Heat flow error (+290). 01942_ System corrupted: Heat flow error (+272). 01966_ Acquired Sub. Monowheel. 01981_ JF&JYXUB|&3X9I VCUMT|T4:GC4WW MSUB=& 02000_ System corrupted: Component data lost. Map ----- +----------------------------------------------------+ | ?#?????#????????# ## [ #??????????????? | | ???????????????## ###### ##??????#??????? | | ??????????#????# #????# #????#?????????? | | ???#????#??????# #????## ##?#???????????? | | ???????????????## #???#?## # #??#?????#?????? | | #??????#??????## ####?## ##???##?????????? | | ??????#??????#?# # ##?# ##???????????????? | | ??????????#?#?## #### #?#??????????????? | | ??#??????#??### ## #??#?????????????? | | ?????#??????# ##???????#????????? | | ??######???## #?????????????????? | | ?## ##?## ##### ##??#?#???????????? | | ?# #### # ###???# #####?????????????? | | ?# #??### #?????????????? | | ?# # ###?# ### ##????????????# | | ?## " ## #??## #??#???????#??? | | ??## " " # ### ##???# #?????????????? | | ???# """" " ## ?????# #?#???????????? | | ???# ##""" " ### ?????# #???#?????????? | | ???# ###"" " ##?# ##??## #?????????????? | | ??## ##""" ### ##?## #### ##???????#????? | | ??# ## ?####???## #???#?????????? | | ??# ### #???##??# ######?????????????? | | ??## #?## ??#??#?# #???????#??????????? | | ??## #??## ?#?????# #??????????????????? | | ??# #??#? ??? ????# @ #?#????????????????? | | ??# ##????# ??#? ???## ###?#???????????????? | | ??# ##?#??????????#??#"" ###?????????????????? | | ??# #????#?#????????##"R #??????????????????? | | ?## #????????????????##"" #????#????????????? | | ?## ##??#???????????? ?## ##?????????????????? | | ?# ##????? ????????????# #??????????????????? | | ?# ##???????? ?????????? ??????????????????? | | ?# #??????#????????????? ??????????????????? | | ## #????????#??????????? "" ?????????????????? | | ## ##????#??????????????# " ????#????????????? | | # ##??????????????????## ?????????????????? | | # ####??????###????????? ????#?????????????? | | ## #??????????????????? ??????????????????? | | ?## #??????????????????? ??????????????????? | | ### #?#????????????????????#???????????????? | | ### #??????????????????????????????????????? | | ##??????????????????????????????????????? | | ##???????????????????????????????????????? | | ###?#????? ????????????????????????????????? | | #??????????????? ??????????????????????????? | | ##??????????????????????????????????????????? | | #?#?????????????????????????????????????????? | | #??????? ???????????????????????????????????? | | #??????????????????????????????????????????? | +----------------------------------------------------+ Best States ------------- Heat Dissipation 25 Energy Generation 10 Energy Capacity 250 Matter Stores 192 Matter Capacity 300 Sight Range 16 Terrain Scan Range 16 Terrain Scan Density 10 Armor Coverage 150 Evasion (%) 40 Recoil Reduction 2 Item Schematics ----------------- None Robot Schematics ------------------ None Fabricated ------------ Nothing Repaired ---------- Nothing Alien Tech Used ----------------- None Achievements -------------- None Challenges ------------ None Game ------ Seed EfficiencyAdvancedHarness Manual? 0 Play Time 00:11:22 Cumulative 151.8 hours Start 2025.07.14 @ 17:38:22 End 2025.07.14 @ 17:46:25 Sessions 1 Manual Loads 0 Difficulty Rogue Special Mode None Game No. 174 Rogue 174 Adventurer 0 Explorer 0 Win Type - Total 3 Types 1/0/0/1/0/0/0/0/0/1 Lore% 65 Gallery% 61 Achievement% 53 Wizard Run 0 Options --------- Layout 1 ASCII 0 Keyboard 1 Movement Numpad Keybinds 0 Fullscreen 1 Font 32/SmallcapsGlow Map View 77x35 Zoom Use 0% Tactical HUD 1 Map Filters NONE Filters NONE Steam 1 RUN: 17ce5878-bdd4-465b-8b7f-9ad1052400b5